fUSD/lending_fUSD_20251122
["ID","MTS","AMOUNT","RATE_DAILY","PERIOD"]
[394661022,1763833849681,-500.0,0.000179,2]
[394661023,1763833849690,-500.0,0.000179,2]
[394661024,1763833849700,-500.0,0.000179,2]
[394661025,1763833849711,-500.0,0.000179,2]
[394661026,1763833849720,-500.0,0.000179,2]
[394661027,1763833849729,-747.0,0.000179,2]
[394661028,1763833849739,-500.0,0.000179,2]
[394661029,1763833849750,-500.0,0.000179,2]
[394661030,1763833849760,-500.0,0.000179,2]
[394661031,1763833849770,-500.0,0.000179,2]
[394661032,1763833849784,-500.0,0.000179,2]
[394661033,1763833849794,-500.0,0.000179,2]
[394661034,1763833849804,-500.0,0.000179,2]
[394661035,1763833849814,-500.0,0.000179,2]
[394661036,1763833849825,-500.0,0.000179,2]
[394661037,1763833849835,-500.0,0.000179,2]
[394661038,1763833849843,-500.0,0.000179,2]
[394661039,1763833849852,-500.0,0.000179,2]
[394661040,1763833849862,-500.0,0.000179,2]
[394661041,1763833849872,-500.0,0.000179,2]
[394661042,1763833849881,-500.0,0.000179,2]
[394661043,1763833849892,-500.0,0.000179,2]
[394661044,1763833849901,-500.0,0.000179,2]
[394661045,1763833849911,-500.0,0.000179,2]
[394661046,1763833849920,-500.0,0.000179,2]
[394661047,1763833849930,-500.0,0.000179,2]
[394661048,1763833849940,-500.0,0.000179,2]
[394661049,1763833849950,-500.0,0.000179,2]
[394661050,1763833849959,-500.0,0.000179,2]
[394661051,1763833849970,-500.0,0.000179,2]
[394661052,1763833849979,-500.0,0.000179,2]
[394661053,1763833849988,-500.0,0.000179,2]
[394661054,1763833849997,-500.0,0.000179,2]
[394661055,1763833850007,-500.0,0.000179,2]
[394661056,1763833850016,-500.0,0.000179,2]
[394661057,1763833850025,-500.0,0.000179,2]
[394661058,1763833850034,-500.0,0.000179,2]
[394661059,1763833850043,-500.0,0.000179,2]
[394661060,1763833850052,-500.0,0.000179,2]
[394661061,1763833850061,-500.0,0.000179,2]
[394661062,1763833850071,-500.0,0.000179,2]
[394661063,1763833850079,-500.0,0.000179,2]
[394661064,1763833850088,-500.0,0.000179,2]
[394661065,1763833850097,-500.0,0.000179,2]
[394661066,1763833850106,-500.0,0.000179,2]
[394661067,1763833850115,-500.0,0.000179,2]
[394661068,1763833850124,-500.0,0.000179,2]
[394661069,1763833850132,-500.0,0.000179,2]
[394661070,1763833850142,-500.0,0.000179,2]
[394661071,1763833850152,-500.0,0.000179,2]
[394661072,1763833850162,-500.0,0.000179,2]
[394661073,1763833850171,-500.0,0.000179,2]
[394661074,1763833850180,-500.0,0.000179,2]
[394661075,1763833850190,-500.0,0.000179,2]
[394661076,1763833850199,-500.0,0.000179,2]
[394661077,1763833850209,-500.0,0.000179,2]
[394661078,1763833850218,-500.0,0.000179,2]
[394661079,1763833850227,-500.0,0.000179,2]
[394661080,1763833850236,-500.0,0.000179,2]
[394661081,1763833850245,-500.0,0.000179,2]
[394661082,1763833850254,-500.0,0.000179,2]
[394661083,1763833850263,-500.0,0.000179,2]
[394661084,1763833850272,-500.0,0.000179,2]
[394661085,1763833850281,-500.0,0.000179,2]
[394661086,1763833850290,-500.0,0.000179,2]
[394661087,1763833850300,-500.0,0.000179,2]
[394661088,1763833850309,-500.0,0.000179,2]
[394661089,1763833850318,-500.0,0.000179,2]
[394661090,1763833850327,-500.0,0.000179,2]
[394661091,1763833850336,-500.0,0.000179,2]
[394661092,1763833850346,-500.0,0.000179,2]
[394661093,1763833850354,-500.0,0.000179,2]
[394661094,1763833850363,-500.0,0.000179,2]
[394661095,1763833850372,-879.0,0.000179,2]
[394661096,1763833850383,-500.0,0.000179,2]
[394661097,1763833850392,-500.0,0.000179,2]
[394661098,1763833850402,-500.0,0.000179,2]
[394661099,1763833850412,-500.0,0.000179,2]
[394661100,1763833850421,-500.0,0.000179,2]
[394661101,1763833850431,-500.0,0.000179,2]
[394661102,1763833850441,-500.0,0.000179,2]
[394661103,1763833850450,-500.0,0.000179,2]
[394661104,1763833850459,-500.0,0.000179,2]
[394661105,1763833850469,-500.0,0.000179,2]
[394661106,1763833850478,-500.0,0.000179,2]
[394661107,1763833850487,-500.0,0.000179,2]
[394661108,1763833850497,-500.0,0.000179,2]
[394661109,1763833850507,-500.0,0.000179,2]
[394661110,1763833850518,-500.0,0.000179,2]
[394661111,1763833850529,-500.0,0.000179,2]
[394661112,1763833850539,-500.0,0.000179,2]
[394661113,1763833850548,-500.0,0.000179,2]
[394661114,1763833850558,-500.0,0.000179,2]
[394661115,1763833850568,-500.0,0.000179,2]
[394661116,1763833850578,-500.0,0.000179,2]
[394661117,1763833850587,-500.0,0.000179,2]
[394661118,1763833850598,-500.0,0.000179,2]
[394661119,1763833850609,-500.0,0.000179,2]
[394661120,1763833850618,-500.0,0.000179,2]
[394661121,1763833850627,-500.0,0.000179,2]
[394661122,1763833850637,-500.0,0.000179,2]
[394661123,1763833850646,-500.0,0.000179,2]
[394661124,1763833850654,-500.0,0.000179,2]
[394661125,1763833850665,-500.0,0.000179,2]
[394661126,1763833850676,-500.0,0.000179,2]
[394661127,1763833850684,-500.0,0.000179,2]
[394661128,1763833850694,-500.0,0.000179,2]
[394661129,1763833850703,-500.0,0.000179,2]
[394661130,1763833850712,-500.0,0.000179,2]
[394661131,1763833850722,-500.0,0.000179,2]
[394661132,1763833850731,-500.0,0.000179,2]
[394661133,1763833850741,-500.0,0.000179,2]
[394661134,1763833850750,-500.0,0.000179,2]
[394661135,1763833850760,-500.0,0.000179,2]
[394661136,1763833850769,-500.0,0.000179,2]
[394661137,1763833850778,-500.0,0.000179,2]
[394661138,1763833850790,-500.0,0.000179,2]
[394661139,1763833850801,-500.0,0.000179,2]
[394661140,1763833850810,-500.0,0.000179,2]
[394661141,1763833850820,-500.0,0.000179,2]
[394661142,1763833850831,-500.0,0.000179,2]
[394661143,1763833850841,-500.0,0.000179,2]
[394661144,1763833850851,-500.0,0.000179,2]
[394661145,1763833850863,-500.0,0.000179,2]
[394661146,1763833850872,-500.0,0.000179,2]
[394661147,1763833850882,-500.0,0.000179,2]
[394661148,1763833850890,-500.0,0.000179,2]
[394661149,1763833850901,-500.0,0.000179,2]
[394661150,1763833850911,-500.0,0.000179,2]
[394661151,1763833850919,-500.0,0.000179,2]
[394661152,1763833850928,-500.0,0.000179,2]
[394661153,1763833850937,-500.0,0.000179,2]
[394661154,1763833850947,-500.0,0.000179,2]
[394661155,1763833850956,-500.0,0.000179,2]
[394661156,1763833850965,-500.0,0.000179,2]
[394661157,1763833851136,-500.0,0.000179,2]
[394661158,1763833851146,-500.0,0.000179,2]
[394661159,1763833851156,-500.0,0.000179,2]
[394661160,1763833851166,-500.0,0.000179,2]
[394661161,1763833851176,-500.0,0.000179,2]
[394661162,1763833851185,-500.0,0.000179,2]
[394661163,1763833851194,-500.0,0.000179,2]
[394661164,1763833851203,-500.0,0.000179,2]
[394661165,1763833851212,-547.0,0.000179,2]
[394661166,1763833851221,-500.0,0.000179,2]
[394661167,1763833851230,-500.0,0.000179,2]
[394661168,1763833851239,-500.0,0.000179,2]
[394661169,1763833851248,-500.0,0.000179,2]
[394661170,1763833851257,-500.0,0.000179,2]
[394661171,1763833851266,-500.0,0.000179,2]
[394661172,1763833851276,-529.0,0.000179,2]
[394661173,1763833851284,-1979.7769,0.000179,2]
[394661174,1763833851293,-656.0,0.000179,2]
[394661175,1763833851302,-500.0,0.000179,2]
[394661176,1763833851311,-500.0,0.000179,2]
[394661177,1763833851319,-500.0,0.000179,2]
[394661178,1763833851328,-500.0,0.000179,2]
[394661179,1763833851337,-500.0,0.000179,2]
[394661180,1763833851346,-500.0,0.000179,2]
[394661181,1763833851355,-500.0,0.000179,2]
[394661182,1763833851364,-500.0,0.000179,2]
[394661183,1763833851373,-500.0,0.000179,2]
[394661184,1763833851382,-500.0,0.000179,2]
[394661185,1763833851391,-500.0,0.000179,2]
[394661186,1763833851400,-500.0,0.000179,2]
[394661187,1763833851408,-500.0,0.000179,2]
[394661188,1763833851418,-500.0,0.000179,2]
[394661189,1763833851427,-500.0,0.000179,2]
[394661190,1763833851436,-500.0,0.000179,2]
[394661191,1763833851445,-500.0,0.000179,2]
[394661192,1763833851454,-500.0,0.000179,2]
[394661193,1763833851464,-500.0,0.000179,2]
[394661194,1763833851474,-500.0,0.000179,2]
[394661195,1763833851483,-500.0,0.000179,2]
[394661196,1763833851493,-500.0,0.000179,2]
[394661197,1763833851502,-840.0,0.000179,2]
[394661198,1763833851511,-151.0,0.000179,2]
[394661199,1763833851522,-151.0,0.000179,2]
[394661200,1763833851531,-151.0,0.000179,2]
[394661201,1763833851540,-151.0,0.000179,2]
[394661202,1763833851550,-151.0,0.000179,2]
[394661203,1763833851560,-151.0,0.000179,2]
[394661204,1763833851570,-254.294848,0.000179,2]
[394661205,1763833851580,-151.0,0.000179,2]
[394661206,1763833851590,-151.0,0.000179,2]
[394661207,1763833851601,-151.0,0.000179,2]
[394661208,1763833851611,-151.0,0.000179,2]
[394661209,1763833851622,-151.0,0.000179,2]
[394661210,1763833851632,-151.0,0.000179,2]
[394661211,1763833851641,-151.0,0.000179,2]
[394661212,1763833851650,-194.6599047,0.000179,2]
[394661213,1763833851660,-159.86537393,0.000179,2]
[394661214,1763833851669,-212.77387789,0.000179,2]
[394661215,1763833851680,-282.4135639,0.000179,2]
[394661216,1763833851689,-500.0,0.00017973,2]
[394661217,1763833851700,-162.62683968,0.00017973,2]
[394661218,1763833851709,-206.31288244,0.0001799,2]
[394661219,1763833851719,-206.31288244,0.0001799,2]
[394661220,1763833851728,-161.23,0.00017999,2]
[394661221,1763833851738,-300.0,0.00017999,2]
[394661222,1763833851747,-500.0,0.00017999,2]
[394661223,1763833851757,-500.0,0.00017999,2]
[394661224,1763833851768,-500.0,0.00017999,2]
[394661225,1763833851778,-500.0,0.00017999,2]
[394661226,1763833851793,-500.0,0.00017999,2]
[394661227,1763833851804,-500.0,0.00017999,2]
[394661228,1763833851814,-500.0,0.00017999,2]
[394661229,1763833851823,-500.0,0.00017999,2]
[394661230,1763833851835,-500.0,0.00017999,2]
[394661231,1763833851845,-500.0,0.00017999,2]
[394661232,1763833851854,-500.0,0.00017999,2]
[394661233,1763833851866,-230.93388554,0.00017999,2]
[394661234,1763833851876,-136347.10484404,0.00018,2]
[394661235,1763833851894,-1833.773,0.00018,2]
[394661236,1763833851905,-6224.83730109,0.00018,2]
[394661237,1763833851917,-870.0,0.00018,2]
[394661238,1763833851928,-398.92236234,0.00018,2]
[394661336,1763834164609,329.32,0.00019178,30]
[394661430,1763834535233,418.9,0.00013699,2]
[394661541,1763835032280,-1115.358,0.0001501,2]
[394661543,1763835032290,-740.19068473,0.00015116,2]
[394661545,1763835032300,-377.87314593,0.00015116,2]
[394661547,1763835032310,-3944.12457331,0.00015116,2]
[394661548,1763835032322,-8058.82116894,0.00015116,2]
[394661549,1763835032332,-180.0,0.00015214,2]
[394661550,1763835032342,-300.0,0.00015214,2]
[394661551,1763835032351,-229.0,0.00015214,2]
[394661552,1763835032361,-463.0,0.00015214,2]
[394661553,1763835032370,-500.0,0.00015215,2]
[394661554,1763835032380,-92996.29411944,0.00015215,2]
[394661555,1763835032393,-301.81779609,0.00015215,2]
[394661556,1763835032404,-1353.92747061,0.00015215,2]
[394661557,1763835032415,-259.5,0.00015215,2]
[394661558,1763835032427,-1577.43265701,0.00015215,2]
[394661559,1763835032453,-776.15703811,0.00015215,2]
[394661560,1763835032464,-1139.34274386,0.00015215,2]
[394661561,1763835032479,-531.67165279,0.00015215,2]
[394661562,1763835032491,-18949.24689192,0.00015215,2]
[394661563,1763835032504,-2236.96238272,0.00015215,2]
[394661582,1763835038278,-522.46652906,0.00015214,2]
[394661583,1763835038292,-250.02703424,0.00015214,2]
[394661584,1763835038302,-51.5958425,0.00015214,2]
[394661585,1763835038332,-108.63411379,0.00015214,2]
[394661586,1763835038342,-666.28310603,0.00015214,2]
[394661587,1763835038352,-666.28310603,0.00015214,2]
[394661588,1763835038362,-487.60967223,0.00015214,2]
[394661589,1763835038440,-178.6734338,0.00015214,2]
[394661590,1763835038450,-322.73656627,0.00015214,2]
[394661591,1763835038600,-343.54653976,0.00015214,2]
[394661592,1763835038611,-419.10028175,0.00015214,2]
[394661597,1763835040326,-247.18282428,0.00015214,2]
[394661598,1763835040335,-206.48356988,0.00015214,2]
[394661599,1763835040379,-459.79953615,0.00015214,2]
[394661600,1763835040389,-317.14200167,0.00015214,2]
[394661601,1763835040435,-250.040793,0.00015214,2]
[394661602,1763835040543,-99.10031136,0.00015214,2]
[394661603,1763835040553,-666.28310603,0.00015214,2]
[394661604,1763835040564,-666.28310603,0.00015214,2]
[394661605,1763835040573,-666.28310603,0.00015214,2]
[394661606,1763835040582,-666.28310603,0.00015214,2]
[394661607,1763835040591,-666.28310603,0.00015214,2]
[394661608,1763835040600,-666.28310603,0.00015214,2]
[394661609,1763835040610,-666.28310603,0.00015214,2]
[394661610,1763835040619,-666.28310603,0.00015214,2]
[394661611,1763835040629,-666.28310603,0.00015214,2]
[394661612,1763835040638,-413.37855141,0.00015214,2]
[394661614,1763835040654,-252.90455462,0.00015214,2]
[394661616,1763835040663,-666.28310603,0.00015214,2]
[394661618,1763835040673,-666.28310603,0.00015214,2]
[394661620,1763835040682,-666.28310603,0.00015214,2]
[394661622,1763835040692,-666.28310603,0.00015214,2]
[394661624,1763835040705,-547.42502126,0.00015214,2]
[394661638,1763835044699,-118.85808477,0.00015214,2]
[394661639,1763835044710,-666.28310603,0.00015214,2]
[394661640,1763835044721,-666.28310603,0.00015214,2]
[394661641,1763835044731,-666.28310603,0.00015214,2]
[394661642,1763835044740,-666.28310603,0.00015214,2]
[394661643,1763835044750,-666.28310603,0.00015214,2]
[394661644,1763835044760,-666.28310603,0.00015214,2]
[394661645,1763835044769,-666.28310603,0.00015214,2]
[394661646,1763835044779,-666.28310603,0.00015214,2]
[394661647,1763835044789,-666.28310603,0.00015214,2]
[394661648,1763835044798,-666.28310603,0.00015214,2]
[394661649,1763835044808,-666.28310603,0.00015214,2]
[394661650,1763835044818,-666.28310603,0.00015214,2]
[394661651,1763835044827,-666.28310603,0.00015214,2]
[394661652,1763835044838,-666.28310603,0.00015214,2]
[394661653,1763835044847,-666.28310603,0.00015214,2]
[394661654,1763835044857,-666.28310603,0.00015214,2]
[394661655,1763835044866,-666.28310603,0.00015214,2]
[394661656,1763835044876,-666.28310603,0.00015214,2]
[394661657,1763835044885,-666.28310603,0.00015214,2]
[394661658,1763835044894,-666.28310603,0.00015214,2]
[394661659,1763835044903,-666.28310603,0.00015214,2]
[394661660,1763835044912,-666.28310603,0.00015214,2]
[394661661,1763835044922,-666.28310603,0.00015214,2]
[394661662,1763835044931,-666.28310603,0.00015214,2]
[394661663,1763835044940,-666.28310603,0.00015214,2]
[394661664,1763835044948,-666.28310603,0.00015214,2]
[394661665,1763835044959,-666.28310603,0.00015214,2]
[394661666,1763835044968,-666.28310603,0.00015214,2]
[394661667,1763835044977,-666.28310603,0.00015214,2]
[394661668,1763835044986,-666.28310603,0.00015214,2]
[394661669,1763835044996,-666.28310603,0.00015214,2]
[394661670,1763835045005,-666.28310603,0.00015214,2]
[394661671,1763835045015,-666.28310603,0.00015214,2]
[394661672,1763835045024,-666.28310603,0.00015214,2]
[394661673,1763835045033,-388306.3233655,0.00015215,2]
[394661675,1763835046328,-283.02304846,0.00015215,2]
[394661676,1763835046381,-83129.40248584,0.00015215,2]
[394661677,1763835046544,-434.81012,0.00015215,2]
[394661805,1763835648378,201.41,0.00022,30]
[394661818,1763835970718,166.66,0.00014648,2]
[394661854,1763836028315,205.0,9.8e-05,2]
[394661855,1763836032431,258.21706322,0.000101,2]
[394662072,1763836231540,-659.60776456,0.00014892,2]
[394662073,1763836231652,-545.31,0.00014892,2]
[394662074,1763836231663,-197.01553601,0.00014892,2]
[394662075,1763836231673,-155.58325728,0.00014957,2]
[394662076,1763836231815,-11.07674272,0.00014957,2]
[394662077,1763836231824,-300.0,0.00015014,2]
[394662078,1763836231836,-192.78090378,0.00015015,2]
[394662079,1763836231847,-330.63900268,0.00015015,2]
[394662080,1763836231856,-1428.53295237,0.00015015,2]
[394662081,1763836231868,-9374.1182157,0.00015015,2]
[394662082,1763836231878,-151.0,0.00015112,2]
[394662083,1763836231888,-264.37836761,0.00015112,2]
[394662084,1763836231898,-151.0,0.00015112,2]
[394662085,1763836231907,-1037.0,0.00015113,2]
[394662086,1763836231916,-1287.08535652,0.00015114,2]
[394662087,1763836231926,-300.0,0.00015114,2]
[394662089,1763836231936,-2438.67907606,0.00015115,2]
[394662091,1763836231945,-1000.0,0.00015115,2]
[394662093,1763836231953,-2706.05320848,0.00015115,2]
[394662141,1763836237539,-1752.49407216,0.00015115,2]
[394662142,1763836237650,-507.25978616,0.00015115,2]
[394662143,1763836237666,-873.39,0.00015115,2]
[394662154,1763836239517,-3942.02219288,0.00015115,2]
[394662155,1763836239529,-768.40000003,0.00015115,2]
[394662156,1763836239626,-289.36637189,0.00015115,2]
[394662165,1763836244051,-347.65681638,0.00015115,2]
[394662175,1763836245886,-432.60481996,0.00015115,2]
[394662176,1763836245898,-618.41830526,0.00015115,2]
[394662177,1763836245910,-1223.3358319,0.00015115,2]
[394662178,1763836246060,-835.29999935,0.00015115,2]
[394662179,1763836246072,-484.62442324,0.00015115,2]
[394662180,1763836246085,-1125.6,0.00015115,2]
[394662181,1763836246097,-1438.33441835,0.00015115,2]
[394662182,1763836246196,-1921.05484689,0.00015115,2]
[394662255,1763836293722,892.286,0.00014813,2]
[394662268,1763836445423,999.0,0.00014997,3]
[394662272,1763836679566,250.0,0.00014732,2]
[394662273,1763836893795,713.829,0.00014813,2]
[394662274,1763836902550,2201.21443677,0.00014819,2]
[394662275,1763836902572,10000.01,0.00014819,2]
[394662276,1763836902595,10000.01,0.00014819,2]
[394662277,1763836902616,10000.01,0.00014819,2]
[394662278,1763836902637,10000.01,0.00014819,2]
[394662279,1763836902658,10000.01,0.00014819,2]
[394662280,1763836902684,10000.01,0.00014819,2]
[394662281,1763836902707,10000.01,0.00014819,2]
[394662282,1763836902729,366.39556323,0.00014819,2]
[394662393,1763837137395,7362.86,0.00014445,2]
[394662418,1763837218275,178.81358798,0.00014815,2]
[394662419,1763837266315,2091.94084879,0.00014417,2]
[394662420,1763837266341,3086.61915121,0.00014417,2]
[394662421,1763837314410,397.95,0.00013699,2]
[394662425,1763837393952,6515.44084879,0.0001483,2]
[394662426,1763837393976,3484.55915121,0.0001483,2]
[394662427,1763837418050,6515.45084879,0.0001483,2]
[394662428,1763837418073,3484.54915121,0.0001483,2]
[394662429,1763837427481,163.87,0.00014793,2]
[394662433,1763837431665,-300.0,0.00014913,2]
[394662434,1763837431674,-1200.0,0.00014913,2]
[394662435,1763837431684,-470.8692,0.00014914,2]
[394662436,1763837431693,-2500.0,0.00014914,2]
[394662438,1763837431702,-280.5422,0.00014914,2]
[394662439,1763837431711,-1200.0,0.00014914,2]
[394662440,1763837431720,-412.06314207,0.00014915,2]
[394662441,1763837431730,-808.41722223,0.00014915,2]
[394662442,1763837431741,-9026.00882906,0.00014915,2]
[394662443,1763837431751,-2580.48928304,0.00014915,2]
[394662444,1763837431760,-192.07894294,0.00014915,2]
[394662445,1763837431769,-452.5898,0.0001497,2]
[394662446,1763837431779,-11614.71,0.00014972,2]
[394662447,1763837431789,-151.0,0.00015011,2]
[394662448,1763837431797,-458.09495377,0.00015013,2]
[394662449,1763837431806,-195.61910552,0.00015013,2]
[394662450,1763837431815,-500.0,0.00015013,2]
[394662451,1763837431826,-500.0,0.00015013,2]
[394662452,1763837431835,-413.88740078,0.00015013,2]
[394662453,1763837431844,-500.0,0.00015013,2]
[394662454,1763837431853,-500.0,0.00015013,2]
[394662455,1763837431863,-500.0,0.00015013,2]
[394662456,1763837431872,-500.0,0.00015013,2]
[394662457,1763837431881,-500.0,0.00015013,2]
[394662458,1763837431890,-500.0,0.00015013,2]
[394662459,1763837431899,-500.0,0.00015013,2]
[394662460,1763837431908,-500.0,0.00015013,2]
[394662461,1763837431919,-500.0,0.00015013,2]
[394662462,1763837431930,-500.0,0.00015013,2]
[394662463,1763837431940,-500.0,0.00015013,2]
[394662464,1763837431949,-500.0,0.00015013,2]
[394662466,1763837431959,-500.0,0.00015013,2]
[394662468,1763837431968,-500.0,0.00015013,2]
[394662470,1763837431978,-500.0,0.00015013,2]
[394662472,1763837431987,-500.0,0.00015013,2]
[394662474,1763837431997,-500.0,0.00015013,2]
[394662476,1763837432007,-500.0,0.00015013,2]
[394662480,1763837432016,-500.0,0.00015013,2]
[394662483,1763837432025,-500.0,0.00015013,2]
[394662485,1763837432034,-500.0,0.00015013,2]
[394662487,1763837432043,-500.0,0.00015013,2]
[394662489,1763837432051,-500.0,0.00015013,2]
[394662491,1763837432060,-500.0,0.00015013,2]
[394662493,1763837432070,-500.0,0.00015013,2]
[394662495,1763837432078,-500.0,0.00015013,2]
[394662497,1763837432087,-500.0,0.00015013,2]
[394662499,1763837432097,-500.0,0.00015013,2]
[394662501,1763837432106,-500.0,0.00015013,2]
[394662503,1763837432115,-500.0,0.00015013,2]
[394662505,1763837432124,-500.0,0.00015013,2]
[394662507,1763837432133,-500.0,0.00015013,2]
[394662509,1763837432143,-500.0,0.00015013,2]
[394662511,1763837432152,-500.0,0.00015013,2]
[394662513,1763837432161,-500.0,0.00015013,2]
[394662515,1763837432170,-500.0,0.00015013,2]
[394662517,1763837432179,-500.0,0.00015013,2]
[394662519,1763837432189,-500.0,0.00015013,2]
[394662521,1763837432198,-492.09663612,0.00015013,2]
[394662523,1763837432207,-500.0,0.00015013,2]
[394662525,1763837432217,-500.0,0.00015013,2]
[394662527,1763837432229,-500.0,0.00015013,2]
[394662529,1763837432240,-500.0,0.00015013,2]
[394662531,1763837432249,-500.0,0.00015013,2]
[394662533,1763837432260,-500.0,0.00015013,2]
[394662535,1763837432270,-500.0,0.00015013,2]
[394662537,1763837432280,-500.0,0.00015013,2]
[394662539,1763837432291,-500.0,0.00015013,2]
[394662541,1763837432301,-500.0,0.00015013,2]
[394662543,1763837432310,-500.0,0.00015013,2]
[394662545,1763837432320,-500.0,0.00015013,2]
[394662547,1763837432330,-500.0,0.00015013,2]
[394662549,1763837432340,-500.0,0.00015013,2]
[394662550,1763837432349,-500.0,0.00015013,2]
[394662551,1763837432358,-500.0,0.00015013,2]
[394662552,1763837432367,-500.0,0.00015013,2]
[394662553,1763837432376,-500.0,0.00015013,2]
[394662554,1763837432385,-500.0,0.00015013,2]
[394662555,1763837432395,-500.0,0.00015013,2]
[394662556,1763837432404,-500.0,0.00015013,2]
[394662557,1763837432413,-500.0,0.00015013,2]
[394662558,1763837432423,-650.0,0.00015013,2]
[394662559,1763837432432,-500.0,0.00015013,2]
[394662560,1763837432442,-500.0,0.00015013,2]
[394662561,1763837432452,-500.0,0.00015013,2]
[394662562,1763837432461,-500.0,0.00015013,2]
[394662563,1763837432473,-500.0,0.00015013,2]
[394662564,1763837432482,-500.0,0.00015013,2]
[394662565,1763837432491,-500.0,0.00015013,2]
[394662566,1763837432500,-500.0,0.00015013,2]
[394662567,1763837432510,-500.0,0.00015013,2]
[394662568,1763837432519,-500.0,0.00015013,2]
[394662569,1763837432528,-500.0,0.00015013,2]
[394662570,1763837432538,-500.0,0.00015013,2]
[394662571,1763837432547,-500.0,0.00015013,2]
[394662572,1763837432556,-500.0,0.00015013,2]
[394662573,1763837432566,-500.0,0.00015013,2]
[394662574,1763837432575,-506.29940894,0.00015013,2]
[394662575,1763837432584,-353.94,0.00015013,2]
[394662576,1763837432594,-28114.25013211,0.00015014,2]
[394662577,1763837432606,-10807.45140751,0.00015014,2]
[394662578,1763837432617,-1751.02,0.00015014,2]
[394662579,1763837432627,-54791.18011379,0.00015014,2]
[394662580,1763837432638,-5442.47307442,0.00015014,2]
[394662581,1763837432648,-1104.82449094,0.00015014,2]
[394662582,1763837432659,-748.69638418,0.00015014,2]
[394662583,1763837432670,-825.596331,0.00015014,2]
[394662584,1763837432680,-300.0,0.00015014,2]
[394662585,1763837432690,-614.58916916,0.00015014,2]
[394662586,1763837432702,-700.0,0.00015014,2]
[394662587,1763837432713,-1706.49592439,0.00015014,2]
[394662588,1763837432726,-1435.1029539,0.00015014,2]
[394662589,1763837432738,-20007.91286028,0.00015014,2]
[394662590,1763837432749,-12303.27244483,0.00015014,2]
[394662597,1763837437702,-7189.11261252,0.00015014,2]
[394662600,1763837437714,-1168.8,0.00015014,2]
[394662602,1763837437727,-280.80017013,0.00015014,2]
[394662604,1763837437739,-5016.00075425,0.00015014,2]
[394662606,1763837437749,-49109.0271233,0.00015014,2]
[394662607,1763837437760,-78886.54062991,0.00015014,2]
[394662608,1763837437771,-10758.03001511,0.00015014,2]
[394662609,1763837437787,-389.43567499,0.00015014,2]
[394662610,1763837437817,-540.01220046,0.00015014,2]
[394662611,1763837437878,-1685.44520005,0.00015014,2]
[394662612,1763837439827,-1915.6044145,0.00015014,2]
[394662613,1763837439886,-1114.70482749,0.00015014,2]
[394662614,1763837440054,-1146.0533188,0.00015014,2]
[394662620,1763837441260,6351.59084879,0.0001483,2]
[394662621,1763837441290,3648.40915121,0.0001483,2]